fUSD/lending_fUSD_20251128
["ID","MTS","AMOUNT","RATE_DAILY","PERIOD"]
[395030847,1764352240050,-151.0,0.00016623,2]
[395030849,1764352240060,-151.0,0.00016623,2]
[395030851,1764352240070,-200.0,0.00016623,2]
[395030853,1764352240079,-151.0,0.00016623,2]
[395030855,1764352240090,-151.0,0.00016623,2]
[395030857,1764352240099,-151.0,0.00016623,2]
[395030859,1764352240109,-151.0,0.00016623,2]
[395030861,1764352240119,-151.0,0.00016623,2]
[395030863,1764352240129,-151.0,0.00016623,2]
[395030865,1764352240139,-151.0,0.00016623,2]
[395030867,1764352240148,-151.0,0.00016623,2]
[395030869,1764352240158,-151.0,0.00016623,2]
[395030871,1764352240168,-151.0,0.00016623,2]
[395030872,1764352240178,-151.0,0.00016623,2]
[395030873,1764352240192,-151.0,0.00016623,2]
[395030874,1764352240202,-250.0,0.00016623,2]
[395030875,1764352240213,-17.15131397,0.00016623,2]
[395030970,1764352241385,-133.84868603,0.00016623,2]
[395030972,1764352241395,-250.0,0.00016623,2]
[395030974,1764352241404,-139.49418901,0.00016623,2]
[395030976,1764352241416,-110.50581099,0.00016623,2]
[395030979,1764352241426,-250.0,0.00016623,2]
[395030980,1764352241444,-250.0,0.00016623,2]
[395030982,1764352241454,-250.0,0.00016623,2]
[395030984,1764352241464,-250.0,0.00016623,2]
[395030986,1764352241474,-250.0,0.00016623,2]
[395030988,1764352241488,-250.0,0.00016623,2]
[395030991,1764352241498,-553.64373807,0.00016623,2]
[395030992,1764352241509,-157.27654856,0.00016623,2]
[395030995,1764352241528,-92.72345144,0.00016623,2]
[395030997,1764352241538,-250.0,0.00016623,2]
[395030999,1764352241547,-250.0,0.00016623,2]
[395031001,1764352241557,-500.0,0.00016623,2]
[395031003,1764352241566,-250.0,0.00016623,2]
[395031005,1764352241575,-37.27654856,0.00016623,2]
[395031011,1764352241618,-212.72345144,0.00016623,2]
[395031013,1764352241628,-500.0,0.00016623,2]
[395031015,1764352241638,-250.0,0.00016623,2]
[395031016,1764352241647,-500.0,0.00016623,2]
[395031018,1764352241656,-33.05833913,0.00016623,2]
[395031021,1764352241668,-466.94166087,0.00016623,2]
[395031022,1764352241676,-250.0,0.00016623,2]
[395031024,1764352241686,-60.18753802,0.00016623,2]
[395031027,1764352241706,-439.81246198,0.00016623,2]
[395031030,1764352241716,-500.0,0.00016623,2]
[395031031,1764352241725,-250.0,0.00016623,2]
[395031033,1764352241737,-500.0,0.00016623,2]
[395031035,1764352241746,-500.0,0.00016623,2]
[395031037,1764352241755,-250.0,0.00016623,2]
[395031039,1764352241764,-500.0,0.00016623,2]
[395031041,1764352241773,-500.0,0.00016623,2]
[395031043,1764352241782,-250.0,0.00016623,2]
[395031045,1764352241792,-500.0,0.00016623,2]
[395031047,1764352241802,-500.0,0.00016623,2]
[395031049,1764352241812,-250.0,0.00016623,2]
[395031051,1764352241821,-500.0,0.00016623,2]
[395031053,1764352241831,-500.0,0.00016623,2]
[395031055,1764352241840,-500.0,0.00016623,2]
[395031057,1764352241849,-500.0,0.00016623,2]
[395031059,1764352241858,-500.0,0.00016623,2]
[395031061,1764352241867,-500.0,0.00016623,2]
[395031063,1764352241877,-232.31155821,0.00016623,2]
[395031065,1764352241886,-500.0,0.00016623,2]
[395031067,1764352241895,-500.0,0.00016623,2]
[395031069,1764352241904,-151.0,0.00016623,2]
[395031071,1764352241913,-500.0,0.00016623,2]
[395031073,1764352241923,-151.0,0.00016623,2]
[395031075,1764352241932,-500.0,0.00016632,2]
[395031077,1764352241941,-500.0,0.00016632,2]
[395031079,1764352241950,-500.0,0.00016632,2]
[395031081,1764352241960,-500.0,0.00016632,2]
[395031083,1764352241969,-500.0,0.00016632,2]
[395031085,1764352241978,-500.0,0.00016632,2]
[395031087,1764352241988,-500.0,0.00016632,2]
[395031089,1764352241998,-415.72379544,0.00016632,2]
[395031091,1764352242007,-500.0,0.00016632,2]
[395031093,1764352242016,-310.37906921,0.00016632,2]
[395031095,1764352242025,-500.0,0.00016632,2]
[395031097,1764352242034,-500.0,0.00016632,2]
[395031099,1764352242043,-500.0,0.00016632,2]
[395031101,1764352242053,-500.0,0.00016632,2]
[395031103,1764352242062,-507.14205343,0.00016632,2]
[395031105,1764352242071,-500.0,0.00016632,2]
[395031107,1764352242081,-500.0,0.00016632,2]
[395031109,1764352242090,-2647.7093,0.00016633,2]
[395031111,1764352242099,-8627.01317594,0.00016639,2]
[395031144,1764352242352,-2824.36073565,0.00016639,2]
[395031148,1764352242362,-500.0,0.00016673,2]
[395031152,1764352242371,-500.0,0.00016673,2]
[395031155,1764352242381,-500.0,0.00016673,2]
[395031158,1764352242390,-371.11170021,0.00016673,2]
[395031161,1764352242399,-268.56242681,0.00016673,2]
[395031271,1764352243198,-231.43757319,0.00016673,2]
[395031273,1764352243208,-11451.37391159,0.00016676,2]
[395031275,1764352243217,-9204.2329976,0.00016713,2]
[395031278,1764352243240,-580.0,0.00016713,2]
[395031280,1764352243252,-1422.9359166,0.00016713,2]
[395031303,1764352243469,-244.20499739,0.00016713,2]
[395031305,1764352243480,-333.48841182,0.00016726,2]
[395031308,1764352243497,-86.51158818,0.00016726,2]
[395031310,1764352243506,-375.13937185,0.00016732,2]
[395031312,1764352243518,-9436.84903997,0.00016751,2]
[395031315,1764352243536,-2014.52487162,0.00016751,2]
[395031317,1764352243545,-11451.37391159,0.00016788,2]
[395031319,1764352243555,-1680.0,0.0001681,2]
[395031321,1764352243564,-158.27701019,0.00016816,2]
[395031323,1764352243574,-250.0,0.00016816,2]
[395031324,1764352243583,-195.0,0.00016816,2]
[395031326,1764352243593,-302.03208624,0.00016816,2]
[395031328,1764352243603,-250.0,0.00016816,2]
[395031330,1764352243613,-11451.37391159,0.00016825,2]
[395031332,1764352243623,-222.6883512,0.00016853,2]
[395031334,1764352243633,-11451.37391159,0.00016863,2]
[395031336,1764352243642,-353.34354054,0.000169,2]
[395031338,1764352243651,-167.30935558,0.000169,2]
[395031340,1764352243661,-635.46407674,0.000169,2]
[395031342,1764352243670,-199.308025,0.000169,2]
[395031344,1764352243679,-11451.37391159,0.000169,2]
[395031346,1764352243688,-261.38566775,0.000169,2]
[395031348,1764352243698,-500.0,0.00016973,2]
[395031350,1764352243707,-162.8112476,0.00016973,2]
[395031352,1764352243716,-162.73962586,0.00016973,2]
[395031354,1764352243726,-500.0,0.00016973,2]
[395031356,1764352243741,-500.0,0.00016973,2]
[395031358,1764352243750,-500.0,0.00016973,2]
[395031360,1764352243761,-500.0,0.00016973,2]
[395031362,1764352243772,-503.31617066,0.00016973,2]
[395031364,1764352243782,-500.0,0.00016973,2]
[395031366,1764352243794,-501.10903681,0.00016973,2]
[395031367,1764352243804,-500.0,0.00016973,2]
[395031369,1764352243814,-500.0,0.00016973,2]
[395031371,1764352243824,-502.32696392,0.00016973,2]
[395031373,1764352243833,-500.0,0.00016973,2]
[395031375,1764352243846,-500.0,0.00016973,2]
[395031377,1764352243860,-500.0,0.00016973,2]
[395031380,1764352243870,-500.0,0.00016973,2]
[395031381,1764352243879,-502.70958477,0.00016973,2]
[395031383,1764352243889,-501.02625705,0.00016973,2]
[395031400,1764352244180,-500.0,0.00016973,2]
[395031401,1764352244190,-500.0,0.00016973,2]
[395031402,1764352244199,-500.0,0.00016973,2]
[395031403,1764352244208,-150.0,0.00016986,2]
[395031404,1764352244217,-150.0,0.00016986,2]
[395031405,1764352244227,-174.27,0.00016986,2]
[395031406,1764352244237,-376.50346487,0.00016999,2]
[395031407,1764352244246,-507.11288139,0.00016999,2]
[395031408,1764352244255,-389351.24613574,0.00017,2]
[395031409,1764352244267,-879.0997796,0.00017,2]
[395031410,1764352244282,-1311.173,0.00017,2]
[395031451,1764352245567,-533.88251343,0.00017,2]
[395031458,1764352245622,-745.56257688,0.00017,2]
[395031479,1764352245892,-445.91691883,0.00017,2]
[395031480,1764352245904,-278.77552,0.00017,2]
[395031481,1764352246001,-903.0,0.00017,2]
[395031482,1764352246051,-272.19999993,0.00017,2]
[395031485,1764352321228,1352.17,0.0002468,120]
[395031489,1764352766998,638.57,0.00013699,2]
[395031493,1764352969501,1161.43,0.00015586,2]
[395031494,1764353166501,166.66,0.00014906,2]
[395031584,1764353432819,-166.66,0.0001522,2]
[395031585,1764353432828,-150.0,0.00015249,2]
[395031586,1764353432841,-250.0,0.00015254,2]
[395031587,1764353432850,-138.11425887,0.00015288,2]
[395031588,1764353432913,-11.88574114,0.00015288,2]
[395031589,1764353432922,-150.0,0.00015288,2]
[395031590,1764353432932,-204.82,0.00015348,2]
[395031591,1764353432941,-468.9024374,0.00015348,2]
[395031592,1764353432953,-150.34713296,0.00015348,2]
[395031593,1764353432962,-175.23621143,0.00015414,2]
[395031594,1764353432974,-2264.98,0.00015514,2]
[395031595,1764353432984,-200.0,0.00015514,2]
[395031596,1764353432993,-166.66,0.00015534,2]
[395031597,1764353433002,-300.0,0.00015584,2]
[395031598,1764353433011,-300.0,0.00015584,2]
[395031599,1764353433020,-1200.0,0.00015584,2]
[395031600,1764353433030,-300.0,0.00015585,2]
[395031601,1764353433039,-11775.92502858,0.00015586,2]
[395031602,1764353433051,-6069.1,0.00015586,2]
[395031603,1764353433084,-380.79749567,0.00015586,2]
[395031604,1764353433109,-1781.91747575,0.00015586,2]
[395031605,1764353433119,-2091.64,0.00015586,2]
[395031606,1764353433128,-197.82196213,0.00015586,2]
[395031607,1764353433136,-197.82196213,0.00015586,2]
[395031608,1764353433146,-166.66,0.00015848,2]
[395031609,1764353433155,-710.13,0.00015872,2]
[395031610,1764353433163,-195.85797524,0.00015872,2]
[395031611,1764353433172,-263.95200002,0.00015872,2]
[395031612,1764353433181,-1406.22575754,0.00016068,2]
[395031613,1764353433189,-209.0,0.00016095,2]
[395031614,1764353433199,-166.66,0.00016162,2]
[395031615,1764353433208,-166.66,0.0001623,2]
[395031616,1764353433217,-300.0,0.00016278,2]
[395031617,1764353433226,-151.0,0.00016278,2]
[395031618,1764353433235,-267.46074303,0.00016278,2]
[395031619,1764353433244,-5406.32,0.00016288,2]
[395031620,1764353433253,-42128.06690157,0.00016422,2]
[395031621,1764353433271,-21705.63080637,0.00016422,2]
[395031631,1764353437578,-329.81301201,0.00016421,2]
[395031632,1764353437587,-152.49220107,0.00016422,2]
[395031633,1764353437598,-1439.312,0.00016422,2]
[395031634,1764353437635,-32484.31301816,0.00016422,2]
[395031826,1764353439954,-637.23808207,0.00016422,2]
[395031828,1764353439966,-23579.79512146,0.00016422,2]
[395031831,1764353439983,-1299.42556333,0.00016422,2]
[395031836,1764353440021,-1449.495,0.00016422,2]
[395031840,1764353440056,-92668.50030597,0.00016422,2]
[395031842,1764353440065,-329.9797,0.00016432,2]
[395031844,1764353440075,-2500.0,0.00016432,2]
[395031846,1764353440084,-1053.87391211,0.00016432,2]
[395031848,1764353440094,-152.76414739,0.00016432,2]
[395031850,1764353440103,-333.34872077,0.00016432,2]
[395031852,1764353440113,-1352.17,0.00016453,2]
[395031854,1764353440123,-500.0,0.00016473,2]
[395031857,1764353440132,-500.0,0.00016473,2]
[395031859,1764353440142,-501.06358284,0.00016473,2]
[395031861,1764353440151,-166.66,0.00016476,2]
[395031863,1764353440160,-1053.8739121,0.00016484,2]
[395031865,1764353440170,-152.76414732,0.00016491,2]
[395031867,1764353440180,-151.0,0.00016522,2]
[395031868,1764353440189,-500.0,0.00016522,2]
[395031871,1764353440198,-151.0,0.00016522,2]
[395031872,1764353440207,-500.0,0.00016522,2]
[395031874,1764353440217,-151.0,0.00016522,2]
[395031876,1764353440227,-500.0,0.00016522,2]
[395031878,1764353440236,-151.0,0.00016522,2]
[395031880,1764353440246,-500.0,0.00016522,2]
[395031882,1764353440255,-151.0,0.00016522,2]
[395031884,1764353440264,-500.0,0.00016522,2]
[395031887,1764353440274,-151.0,0.00016522,2]
[395031888,1764353440283,-500.0,0.00016522,2]
[395031891,1764353440293,-151.0,0.00016522,2]
[395031893,1764353440303,-500.0,0.00016522,2]
[395031894,1764353440312,-151.0,0.00016522,2]
[395031896,1764353440322,-500.0,0.00016522,2]
[395031897,1764353440331,-500.0,0.00016522,2]
[395031898,1764353440340,-151.0,0.00016522,2]
[395031899,1764353440351,-500.0,0.00016522,2]
[395031900,1764353440360,-500.0,0.00016522,2]
[395031901,1764353440370,-151.0,0.00016522,2]
[395031902,1764353440379,-201.93286099,0.00016522,2]
[395031903,1764353440389,-533.67854975,0.00016522,2]
[395031904,1764353440399,-500.0,0.00016522,2]
[395031905,1764353440408,-151.0,0.00016522,2]
[395031906,1764353440417,-250.0,0.00016522,2]
[395031907,1764353440427,-500.0,0.00016522,2]
[395031908,1764353440436,-151.0,0.00016522,2]
[395031909,1764353440445,-500.0,0.00016522,2]
[395031910,1764353440455,-250.0,0.00016522,2]
[395031911,1764353440464,-476.84550958,0.00016522,2]
[395031912,1764353440474,-250.0,0.00016522,2]
[395031913,1764353440483,-200.0,0.00016522,2]
[395031914,1764353440492,-250.0,0.00016522,2]
[395031915,1764353440503,-250.0,0.00016522,2]
[395031916,1764353440512,-250.0,0.00016522,2]
[395031917,1764353440521,-250.0,0.00016522,2]
[395031918,1764353440531,-250.0,0.00016522,2]
[395031919,1764353440540,-151.0,0.00016522,2]
[395031921,1764353440549,-250.0,0.00016522,2]
[395031922,1764353440558,-250.0,0.00016522,2]
[395031924,1764353440568,-250.0,0.00016522,2]
[395031926,1764353440577,-500.0,0.00016522,2]
[395031928,1764353440587,-500.0,0.00016522,2]
[395031930,1764353440596,-250.0,0.00016522,2]
[395031932,1764353440605,-500.0,0.00016522,2]
[395031934,1764353440614,-500.0,0.00016522,2]
[395031936,1764353440624,-500.0,0.00016522,2]
[395031938,1764353440633,-500.0,0.00016522,2]
[395031940,1764353440642,-500.0,0.00016522,2]
[395031942,1764353440651,-151.0,0.00016522,2]
[395031944,1764353440661,-500.0,0.00016522,2]
[395031946,1764353440670,-500.0,0.00016522,2]
[395031948,1764353440679,-500.0,0.00016522,2]
[395031950,1764353440689,-500.0,0.00016522,2]
[395031952,1764353440698,-500.0,0.00016522,2]
[395031954,1764353440708,-500.0,0.00016522,2]
[395031956,1764353440717,-151.0,0.00016522,2]
[395031958,1764353440727,-500.0,0.00016522,2]
[395031960,1764353440736,-500.0,0.00016522,2]
[395031962,1764353440745,-200.0,0.00016522,2]
[395031964,1764353440754,-500.0,0.00016522,2]
[395031966,1764353440763,-500.0,0.00016522,2]
[395031968,1764353440776,-500.0,0.00016522,2]
[395031970,1764353440787,-500.0,0.00016522,2]
[395031972,1764353440796,-500.0,0.00016522,2]
[395031974,1764353440807,-500.0,0.00016522,2]
[395031976,1764353440816,-500.0,0.00016522,2]
[395031978,1764353440825,-500.0,0.00016522,2]
[395031980,1764353440834,-500.0,0.00016522,2]
[395031982,1764353440844,-500.0,0.00016522,2]
[395031984,1764353440855,-500.0,0.00016522,2]
[395031986,1764353440864,-500.0,0.00016522,2]
[395031988,1764353440874,-500.0,0.00016522,2]
[395031990,1764353440884,-200.0,0.00016522,2]
[395031993,1764353440894,-500.0,0.00016522,2]
[395031995,1764353440903,-500.0,0.00016522,2]
[395031996,1764353440913,-250.0,0.00016522,2]
[395031998,1764353440922,-250.0,0.00016522,2]
[395032000,1764353440931,-250.0,0.00016522,2]
[395032002,1764353440940,-250.0,0.00016522,2]
[395032004,1764353440950,-506.31894944,0.00016522,2]
[395032006,1764353440959,-855.35,0.00016522,2]
[395032008,1764353440968,-1459.16090113,0.00016531,2]
[395032011,1764353440978,-372.572,0.00016531,2]
[395032012,1764353440987,-500.0,0.00016531,2]
[395032014,1764353440997,-500.0,0.00016531,2]
[395032017,1764353441007,-500.0,0.00016531,2]
[395032019,1764353441020,-600.0,0.00016532,2]
[395032021,1764353441030,-1053.8739121,0.00016536,2]
[395032023,1764353441039,-152.76414732,0.00016549,2]
[395032025,1764353441049,-501.99610508,0.00016573,2]
[395032027,1764353441058,-501.42223441,0.00016573,2]
[395032029,1764353441068,-565.90233254,0.00016573,2]
[395032031,1764353441076,-500.0,0.00016573,2]
[395032032,1764353441086,-500.0,0.00016573,2]
[395032034,1764353441095,-512.43353086,0.00016573,2]
[395032037,1764353441104,-500.0,0.00016573,2]
[395032039,1764353441114,-502.93987494,0.00016573,2]
[395032041,1764353441123,-500.0,0.00016573,2]
[395032042,1764353441132,-500.0,0.00016573,2]
[395032044,1764353441142,-500.0,0.00016573,2]
[395032046,1764353441152,-500.0,0.00016573,2]
[395032048,1764353441161,-500.0,0.00016573,2]
[395032050,1764353441170,-500.0,0.00016573,2]
[395032052,1764353441179,-500.0,0.00016573,2]
[395032055,1764353441188,-530.3720115,0.00016573,2]
[395032057,1764353441198,-500.0,0.00016573,2]
[395032058,1764353441207,-636.39179357,0.00016573,2]
[395032061,1764353441216,-1053.8739121,0.00016588,2]
[395032063,1764353441225,-5447.19470453,0.00016592,2]
[395032064,1764353441234,-152.76414732,0.00016608,2]
[395032066,1764353441243,-500.0,0.00016632,2]
[395032068,1764353441252,-150.52756484,0.00016632,2]
[395032070,1764353441261,-1053.8739121,0.0001664,2]
[395032072,1764353441270,-152.76414732,0.00016666,2]
[395032075,1764353441280,-1053.8739121,0.00016692,2]
[395032077,1764353441289,-510.0,0.00016707,2]
[395032078,1764353441298,-152.76414732,0.00016725,2]
[395032081,1764353441308,-250.0,0.00016742,2]
[395032083,1764353441317,-41.22202645,0.00016742,2]
[395032089,1764353441368,-208.77797355,0.00016742,2]
[395032091,1764353441377,-184.98066727,0.00016742,2]
[395032093,1764353441388,-115.01933273,0.00016742,2]
[395032095,1764353441397,-285.68869421,0.00016742,2]
[395032101,1764353441436,-14.31130579,0.00016742,2]
[395032102,1764353441445,-300.0,0.00016742,2]
[395032104,1764353441454,-300.0,0.00016742,2]
[395032106,1764353441463,-300.0,0.00016742,2]
[395032109,1764353441473,-952.56793845,0.00016744,2]
[395032392,1764353443991,-101.30597365,0.00016744,2]
[395032394,1764353444000,-152.76414732,0.00016783,2]
[395032396,1764353444010,-855.35,0.00016796,2]
[395032398,1764353444020,-1053.8739121,0.00016796,2]
[395032400,1764353444029,-600.0,0.00016806,2]
[395032402,1764353444038,-151.0,0.00016826,2]
[395032404,1764353444047,-152.76414732,0.00016842,2]
[395032406,1764353444057,-1053.8739121,0.00016848,2]
[395032408,1764353444066,-222.6883512,0.00016887,2]
[395032410,1764353444075,-166.66,0.000169,2]
[395032412,1764353444084,-748.05472548,0.000169,2]
[395032414,1764353444094,-167.30935557,0.000169,2]
[395032416,1764353444103,-1053.8739121,0.000169,2]
[395032418,1764353444112,-152.76414732,0.000169,2]
[395032420,1764353444124,-261.1256255,0.000169,2]
[395032422,1764353444133,-225.73830502,0.000169,2]
[395032424,1764353444142,-423.64271784,0.000169,2]
[395032426,1764353444151,-645.57717859,0.000169,2]
[395032428,1764353444161,-217.82138975,0.000169,2]
[395032430,1764353444170,-500.0,0.00016973,2]
[395032432,1764353444179,-519.22420368,0.00016973,2]
[395032434,1764353444188,-500.0,0.00016973,2]
[395032436,1764353444196,-500.0,0.00016973,2]
[395032437,1764353444205,-500.0,0.00016973,2]
[395032439,1764353444215,-500.0,0.00016973,2]
[395032441,1764353444225,-250.0,0.00016973,2]
[395032443,1764353444235,-503.07122512,0.00016973,2]
[395032445,1764353444244,-500.0,0.00016973,2]
[395032447,1764353444253,-457.63452341,0.00016973,2]
[395032449,1764353444263,-1120.75944784,0.00016976,2]
[395032451,1764353444273,-2362.0632677,0.00016988,2]
[395032453,1764353444283,-5602.3508132,0.00016988,2]
[395032455,1764353444292,-11010.7119121,0.00016988,2]
[395032457,1764353444302,-1479.2587756,0.00016988,2]
[395032459,1764353444311,-246.30453399,0.00016999,2]
[395032461,1764353444320,-251.0496658,0.00016999,2]
[395032462,1764353444330,-781152.54672802,0.00017,2]
[395032463,1764353444342,-8369.35941122,0.00017,2]
[395032542,1764353445722,-14797.77170202,0.00017,2]
[395032553,1764353445922,-45411.0,0.00017,2]
[395032554,1764353446032,-2328467.04665219,0.00017,2]
[395032994,1764353474099,-500.0,0.00016421,2]
[395032995,1764353474125,-500.0,0.00016421,2]
[395032996,1764353474149,-500.0,0.00016421,2]
[395032997,1764353474174,-249.93960964,0.00016421,2]
[395032998,1764353474195,-223.84292275,0.00016438,2]
[395032999,1764353474216,-967.52597395,0.000169,2]
[395033000,1764353474236,-1226.0,0.00016959,2]
[395033001,1764353474258,-300.0,0.00016999,2]
[395033002,1764353474279,-532.69149366,0.00016999,2]
[395033003,1764353474968,-5000.0,0.00016999,2]
[395033004,1764353948246,-1200.33346977,0.00015726,2]
[395033005,1764354042964,305.6017716,0.00025,120]
[395033009,1764354354035,153.99398232,0.000146,2]
[395033010,1764354354075,600.07066372,0.000146,2]
[395033011,1764354354099,200.26884505,0.000146,2]
[395033014,1764354379844,1364.0,0.00025,120]
[395033020,1764354516438,266.73363195,0.000107,2]
[395033104,1764354631951,-159.33960328,0.00015348,2]
[395033107,1764354631962,-1527.64952043,0.00015362,2]
[395033117,1764354632066,-553.06047957,0.00015362,2]
[395033119,1764354632077,-250.0,0.00015448,2]
[395033120,1764354632089,-200.0,0.00015534,2]
[395033121,1764354632099,-250.0,0.00015545,2]
[395033122,1764354632112,-999.0,0.00015694,3]
[395033123,1764354632126,-1550.66653023,0.00015726,2]
[395033124,1764354632137,-155.99,0.00015726,2]
[395033125,1764354632149,-287.0,0.00015999,2]
[395033126,1764354632159,-300.0,0.00015999,2]
[395033127,1764354632170,-1200.0,0.00015999,2]
[395033128,1764354632181,-6469.16248945,0.00016,4]
[395033129,1764354632206,-6849.49635434,0.00016,4]
[395033130,1764354632260,-367.84899319,0.00016,4]
[395033131,1764354632273,-652.30130565,0.00016,4]
[395033132,1764354632397,-265.84703492,0.00016,4]
[395033133,1764354632408,-477.99,0.00016018,2]
[395033134,1764354632419,-56.07656813,0.00016122,2]
[395033137,1764354632436,-103.26303515,0.00016122,2]
[395033139,1764354632446,-702.0,0.00016189,2]
[395033141,1764354632457,-315.49641269,0.0001619,2]
[395033154,1764354632536,-234.50358731,0.0001619,2]
[395033157,1764354632548,-239.69934769,0.00016191,2]
[395033308,1764354637913,-518.77065231,0.00016191,2]
[395033309,1764354637923,-327.17,0.00016191,2]
[395033310,1764354637933,-1171.9,0.00016191,2]
[395033311,1764354637942,-150.99,0.00016191,2]
[395033312,1764354637952,-4458.76446945,0.00016191,2]
[395033313,1764354637975,-5541.22553055,0.00016191,2]
[395033314,1764354637985,-1727.82,0.00016191,2]
[395033315,1764354637995,-5000.00603752,0.000162,5]
[395033316,1764354638004,-35638.56151843,0.00016222,2]
[395033317,1764354638091,-1591.6985661,0.00016222,2]
[395033329,1764354639831,-1763.91056177,0.00016222,2]
[395033330,1764354640044,-401.780011,0.00016222,2]
[395033331,1764354640056,-17055.84070492,0.00016222,2]
[395033332,1764354640106,-162283.44593725,0.00016222,2]
[395033574,1764354642623,133.06818672,7.857e-05,2]
[395033577,1764354642644,31.44181328,7.857e-05,2]
[395033594,1764354642793,164.51,9.429e-05,2]
[395033608,1764354642914,164.51,0.00011,2]
[395033611,1764354642932,-270.17399999,0.00016138,2]
[395033626,1764354643061,-617.41200432,0.00016138,2]
[395033628,1764354643070,-1982.64555442,0.00016222,2]
[395033647,1764354643246,164.51,0.00012571,2]
[395033655,1764354643308,-361257.20434611,0.00016222,2]
[395033657,1764354643318,-1103.33,0.00016238,2]
[395033659,1764354643327,-299.99,0.00016267,4]
[395033661,1764354643336,-150.99,0.00016267,2]
[395033663,1764354643346,-898.32,0.00016267,2]
[395033665,1764354643355,-999.99,0.00016267,2]
[395033667,1764354643365,-2942.24,0.00016267,2]
[395033669,1764354643374,-2959.98,0.00016267,2]
[395033671,1764354643383,-419.63831049,0.00016273,2]
[395033673,1764354643394,-500.0,0.00016273,2]
[395033675,1764354643404,-151.0,0.00016281,2]
[395033677,1764354643413,-151.0,0.00016281,2]
[395033679,1764354643423,-267.46074303,0.00016281,2]
[395033681,1764354643432,-300.0,0.00016281,2]
[395033683,1764354643442,-500.0,0.0001629,2]
[395033685,1764354643452,-500.0,0.0001629,2]
[395033687,1764354643461,-500.0,0.0001629,2]
[395033689,1764354643470,-233.5,0.0001629,2]
[395033691,1764354643480,-500.0,0.0001629,2]
[395033693,1764354643489,-500.0,0.0001629,2]
[395033695,1764354643498,-500.0,0.0001629,2]
[395033697,1764354643507,-328.40985323,0.0001629,2]
[395033699,1764354643516,-500.0,0.0001629,2]
[395033701,1764354643526,-500.0,0.0001629,2]
[395033703,1764354643535,-488.50179267,0.0001629,2]
[395033705,1764354643544,-501.28768652,0.0001629,2]
[395033708,1764354643554,-500.0,0.0001629,2]
[395033710,1764354643563,-196.55943663,0.0001629,2]
[395033712,1764354643573,-9999.99,0.00016291,2]
[395033714,1764354643582,-264.05,0.00016291,2]
[395033716,1764354643591,-9999.99,0.00016291,2]
[395033718,1764354643600,-30433.84,0.00016291,2]
[395033720,1764354643609,-2115.6,0.00016291,2]
[395033722,1764354643618,-7649.1746,0.00016322,2]
[395033724,1764354643628,-300.01384863,0.00016338,2]
[395033726,1764354643639,-481.89779856,0.00016338,2]
[395033728,1764354643648,-481.89779853,0.000164,2]
[395033730,1764354643658,-150.0,0.00016411,2]
[395033732,1764354643667,-250.0,0.00016411,2]
[395033734,1764354643676,-200.0,0.00016411,2]
[395033736,1764354643685,-158.61989679,0.00016412,2]
[395033738,1764354643695,-250.0,0.00016412,2]
[395033740,1764354643704,-151.0,0.00016412,2]
[395033742,1764354643713,-250.0,0.00016412,2]
[395033744,1764354643723,-250.0,0.00016412,2]
[395033746,1764354643732,-151.0,0.00016412,2]
[395033748,1764354643743,-250.0,0.00016412,2]
[395033749,1764354643753,-151.0,0.00016412,2]